[Event "21è Open International d'Echecs de Menton"]
[Site "Menton, France"]
[Date "2024.10.27"]
[Round "1.1"]
[White "Jean-Marc, DEGRAEVE 2479"]
[Black "Micael, FAELLMAN 1994"]
[Result "1-0"]
[TimeControl "90'+30''/40m + 30'+30''"]
[WhiteTitle "GM"]
[WhiteFideId "600270"]
[BlackFideId "1710826"]
[WhiteElo "2479"]
[BlackElo "1994"]

1. e4 {[%clk 01:30:56]} {[%emt 00:00:03]} e5 {[%clk 01:30:39]} {[%emt
00:00:21]} 2. Bc4 {[%clk 01:31:17]} {[%emt 00:00:09]} Nf6 {[%clk 01:31:00]}
{[%emt 00:00:09]} 3. d3 {[%clk 01:31:42]} {[%emt 00:00:05]} c6 {[%clk
01:31:24]} {[%emt 00:00:07]} 4. Nf3 {[%clk 01:32:02]} {[%emt 00:00:10]} d5
{[%clk 01:31:44]} {[%emt 00:00:10]} 5. Bb3 {[%clk 01:32:23]} {[%emt 00:00:08]}
Bd6 {[%clk 01:31:13]} {[%emt 00:01:00]} 6. Nc3 {[%clk 01:32:13]} {[%emt
00:00:41]} Be6 {[%clk 01:27:59]} {[%emt 00:03:43]} 7. Bg5 {[%clk 01:27:29]}
{[%emt 00:05:14]} d4 {[%clk 01:20:55]} {[%emt 00:07:34]} 8. Ne2 {[%clk
01:27:30]} {[%emt 00:00:29]} Nbd7 {[%clk 01:20:11]} {[%emt 00:01:14]} 9. Bxe6
{[%clk 01:24:49]} {[%emt 00:03:11]} fxe6 {[%clk 01:18:49]} {[%emt 00:01:51]} 10.
c3 {[%clk 01:25:10]} {[%emt 00:00:10]} dxc3 {[%clk 01:14:14]} {[%emt 00:05:05]}
11. bxc3 {[%clk 01:24:09]} {[%emt 00:01:31]} O-O {[%clk 01:13:24]} {[%emt
00:01:20]} 12. Ng3 {[%clk 01:23:16]} {[%emt 00:01:22]} Qe8 {[%clk 01:07:53]}
{[%emt 00:06:01]} 13. O-O {[%clk 01:23:14]} {[%emt 00:00:32]} Rd8 {[%clk
01:05:18]} {[%emt 00:03:05]} 14. h3 {[%clk 01:20:09]} {[%emt 00:03:36]} Bc7
{[%clk 01:02:13]} {[%emt 00:03:35]} 15. Qb1 {[%clk 01:17:20]} {[%emt 00:03:19]}
Rb8 {[%clk 00:57:49]} {[%emt 00:04:53]} 16. Be3 {[%clk 01:15:22]} {[%emt
00:02:28]} b6 {[%clk 00:57:31]} {[%emt 00:00:48]} 17. Qb3 {[%clk 01:15:21]}
{[%emt 00:00:31]} Qe7 {[%clk 00:56:11]} {[%emt 00:01:49]} 18. Ng5 {[%clk
01:14:36]} {[%emt 00:01:16]} Rbe8 {[%clk 00:56:24]} {[%emt 00:00:17]} 19. Nf5
{[%clk 01:15:00]} {[%emt 00:00:06]} 1-0

[Event "21è Open International d'Echecs de Menton"]
[Site "Menton, France"]
[Date "2024.10.27"]
[Round "1.2"]
[White "Robert, KRASIEWICZ 1992"]
[Black "Paolo, FORMENTO 2346"]
[Result "0-1"]
[TimeControl "90'+30''/40m + 30'+30''"]
[BlackTitle "FM"]
[WhiteFideId "1128612"]
[BlackFideId "861162"]
[WhiteElo "1992"]
[BlackElo "2346"]

1. c4 {[%clk 01:30:53]} {[%emt 00:00:06]} e5 {[%clk 01:29:00]} {[%emt
00:02:00]} 2. g3 {[%clk 01:31:17]} {[%emt 00:00:06]} Nf6 {[%clk 01:26:50]}
{[%emt 00:02:40]} 3. Bg2 {[%clk 01:31:33]} {[%emt 00:00:14]} d5 {[%clk
01:26:02]} {[%emt 00:01:17]} 4. cxd5 {[%clk 01:30:27]} {[%emt 00:01:36]} Nxd5
{[%clk 01:26:25]} {[%emt 00:00:07]} 5. Nc3 {[%clk 01:30:50]} {[%emt 00:00:07]}
Nb6 {[%clk 01:25:22]} {[%emt 00:01:34]} 6. d3 {[%clk 01:31:05]} {[%emt
00:00:15]} Be7 {[%clk 01:25:21]} {[%emt 00:00:31]} 7. Be3 {[%clk 01:29:27]}
{[%emt 00:02:07]} O-O {[%clk 01:25:25]} {[%emt 00:00:27]} 8. Qd2 {[%clk
01:28:32]} {[%emt 00:01:24]} Nc6 {[%clk 01:19:08]} {[%emt 00:06:47]} 9. Bxc6
{[%clk 01:28:26]} {[%emt 00:00:36]} bxc6 {[%clk 01:19:36]} {[%emt 00:00:02]} 10.
Nf3 {[%clk 01:28:47]} {[%emt 00:00:09]} f6 {[%clk 01:16:21]} {[%emt 00:03:45]}
11. O-O {[%clk 01:28:52]} {[%emt 00:00:24]} Be6 {[%clk 01:02:06]} {[%emt
00:14:46]} 12. Ne4 {[%clk 01:24:50]} {[%emt 00:04:32]} Bd5 {[%clk 01:01:21]}
{[%emt 00:01:15]} 13. Rfc1 {[%clk 01:19:10]} {[%emt 00:06:09]} a5 {[%clk
00:53:42]} {[%emt 00:08:09]} 14. Bc5 {[%clk 01:09:30]} {[%emt 00:10:10]} f5
{[%clk 00:49:46]} {[%emt 00:04:27]} 15. Bxe7 {[%clk 01:07:52]} {[%emt
00:02:07]} Qxe7 {[%clk 00:50:14]} {[%emt 00:00:02]} 16. Nc5 {[%clk 01:06:59]}
{[%emt 00:01:22]} e4 {[%clk 00:37:00]} {[%emt 00:13:45]} 17. Qe3 {[%clk
00:57:22]} {[%emt 00:10:07]} Rae8 {[%clk 00:32:40]} {[%emt 00:04:51]} 18. dxe4
{[%clk 00:49:28]} {[%emt 00:08:24]} Nc4 {[%clk 00:26:17]} {[%emt 00:06:53]} 19.
Qd4 {[%clk 00:49:05]} {[%emt 00:00:52]} fxe4 {[%clk 00:26:13]} {[%emt
00:00:35]} 20. Ne1 {[%clk 00:41:30]} {[%emt 00:08:03]} Nd6 {[%clk 00:16:57]}
{[%emt 00:09:47]} 21. Ng2 {[%clk 00:37:36]} {[%emt 00:04:24]} Nb5 {[%clk
00:13:36]} {[%emt 00:03:51]} 22. Qd2 {[%clk 00:35:39]} {[%emt 00:02:26]} Qf7
{[%clk 00:12:40]} {[%emt 00:01:27]} 23. Rf1 {[%clk 00:34:27]} {[%emt 00:01:40]}
Qe7 {[%clk 00:11:18]} {[%emt 00:01:53]} 24. Rac1 {[%clk 00:31:47]} {[%emt
00:03:09]} Ra8 {[%clk 00:10:14]} {[%emt 00:01:35]} 25. Ne3 {[%clk 00:29:01]}
{[%emt 00:03:16]} Be6 {[%clk 00:10:13]} {[%emt 00:00:32]} 26. Nxe6 {[%clk
00:19:03]} {[%emt 00:10:27]} Qxe6 {[%clk 00:10:41]} {[%emt 00:00:02]} 27. Nc4
{[%clk 00:19:14]} {[%emt 00:00:19]} c5 {[%clk 00:09:28]} {[%emt 00:01:43]} 28.
e3 {[%clk 00:14:48]} {[%emt 00:04:56]} Rfd8 {[%clk 00:07:08]} {[%emt 00:02:50]}
29. Qc2 {[%clk 00:13:28]} {[%emt 00:01:48]} Rd3 {[%clk 00:04:54]} {[%emt
00:02:46]} 30. Rfd1 {[%clk 00:11:52]} {[%emt 00:02:06]} Qd5 {[%clk 00:03:57]}
{[%emt 00:01:28]} 31. b3 {[%clk 00:10:23]} {[%emt 00:01:58]} Rd8 {[%clk
00:02:26]} {[%emt 00:02:02]} 32. Nb2 {[%clk 00:09:06]} {[%emt 00:01:45]} Na3
{[%clk 00:00:59]} {[%emt 00:01:58]} 33. Qe2 {[%clk 00:09:32]} {[%emt 00:00:04]}
Rd2 {[%clk 00:01:06]} {[%emt 00:00:24]} 34. Rxd2 {[%clk 00:01:27]} {[%emt
00:08:35]} Qxd2 {[%clk 00:01:34]} {[%emt 00:00:01]} 35. Qxd2 {[%clk 00:01:52]}
{[%emt 00:00:06]} Rxd2 {[%clk 00:02:03]} {[%emt 00:00:01]} 36. Na4 {[%clk
00:02:13]} {[%emt 00:00:09]} c4 {[%clk 00:02:09]} {[%emt 00:00:25]} 37. bxc4
{[%clk 00:02:36]} {[%emt 00:00:06]} Rxa2 {[%clk 00:02:05]} {[%emt 00:00:34]} 38.
Nc3 {[%clk 00:02:50]} {[%emt 00:00:16]} Rc2 {[%clk 00:01:30]} {[%emt 00:01:06]}
39. Rxc2 {[%clk 00:03:03]} {[%emt 00:00:17]} Nxc2 {[%clk 00:01:59]} 40. Kf1
{[%clk 00:02:27]} {[%emt 00:01:06]} Kf7 {[%clk 00:01:27]} {[%emt 00:01:03]} 41.
Ke2 {[%clk 00:01:57]} {[%emt 00:00:59]} Na3 {[%clk 00:27:06]} {[%emt 00:04:52]}
42. c5 {[%clk 00:31:02]} {[%emt 00:01:24]} Ke6 {[%clk 00:27:27]} {[%emt
00:00:10]} 43. Kd2 {[%clk 00:27:51]} {[%emt 00:03:40]} Ke5 {[%clk 00:26:23]}
{[%emt 00:01:34]} 44. Kc1 {[%clk 00:28:06]} {[%emt 00:00:11]} c6 {[%clk
00:23:16]} {[%emt 00:03:41]} 45. g4 {[%clk 00:20:38]} {[%emt 00:07:59]} Nb5
{[%clk 00:20:29]} {[%emt 00:03:17]} 46. Ne2 {[%clk 00:19:27]} {[%emt 00:01:41]}
Nc7 {[%clk 00:20:20]} {[%emt 00:00:39]} 47. Nd4 {[%clk 00:18:19]} {[%emt
00:01:37]} Kd5 {[%clk 00:20:46]} {[%emt 00:00:05]} 48. Nf5 {[%clk 00:16:01]}
{[%emt 00:02:48]} g6 {[%clk 00:19:53]} {[%emt 00:01:23]} 49. Nd6 {[%clk
00:16:01]} {[%emt 00:00:29]} Ne6 {[%clk 00:19:25]} {[%emt 00:00:58]} 50. Ne8
{[%clk 00:15:59]} {[%emt 00:00:32]} Ke5 {[%clk 00:17:12]} {[%emt 00:02:43]} 51.
Kc2 {[%clk 00:15:05]} {[%emt 00:01:24]} Nxc5 {[%clk 00:15:31]} {[%emt
00:02:12]} 52. Kc3 {[%clk 00:14:04]} {[%emt 00:01:29]} Nd3 {[%clk 00:14:47]}
{[%emt 00:01:15]} 53. g5 {[%clk 00:10:14]} {[%emt 00:04:20]} Nxf2 {[%clk
00:14:57]} {[%emt 00:00:21]} 54. Nf6 {[%clk 00:10:10]} {[%emt 00:00:34]} h5
{[%clk 00:15:17]} {[%emt 00:00:10]} 55. h4 {[%clk 00:09:41]} {[%emt 00:00:59]}
Ng4 {[%clk 00:15:20]} {[%emt 00:00:27]} 56. Nd7+ {[%clk 00:10:00]} {[%emt
00:00:10]} Ke6 {[%clk 00:14:22]} {[%emt 00:01:28]} 57. Nc5+ {[%clk 00:10:02]}
{[%emt 00:00:29]} Kd5 {[%clk 00:13:18]} {[%emt 00:01:34]} 58. Nd7 {[%clk
00:08:56]} {[%emt 00:01:35]} Kd6 {[%clk 00:11:03]} {[%emt 00:02:44]} 59. Nb6
{[%clk 00:09:06]} {[%emt 00:00:20]} Nxe3 {[%clk 00:08:05]} {[%emt 00:03:28]} 60.
Kd4 {[%clk 00:09:34]} {[%emt 00:00:02]} Nf5+ {[%clk 00:07:48]} {[%emt
00:00:48]} 61. Kxe4 {[%clk 00:10:02]} {[%emt 00:00:02]} Kc5 {[%clk 00:06:46]}
{[%emt 00:01:32]} 62. Nd7+ {[%clk 00:10:23]} {[%emt 00:00:09]} Kb4 {[%clk
00:07:11]} {[%emt 00:00:05]} 63. Ne5 {[%clk 00:10:47]} {[%emt 00:00:07]} a4
{[%clk 00:04:21]} {[%emt 00:03:20]} 64. Nxc6+ {[%clk 00:10:24]} {[%emt
00:00:52]} Kc3 {[%clk 00:04:15]} {[%emt 00:00:36]} 0-1

[Event "21è Open International d'Echecs de Menton"]
[Site "Menton, France"]
[Date "2024.10.27"]
[Round "1.3"]
[White "Jan, JOHANSSON 2284"]
[Black "Clement, BERGASSE 1872"]
[Result "1-0"]
[TimeControl "90'+30''/40m + 30'+30''"]
[WhiteTitle "IM"]
[WhiteFideId "1700103"]
[BlackFideId "45196648"]
[WhiteElo "2284"]
[BlackElo "1872"]

1. d4 {[%clk 01:30:57]} {[%emt 00:00:03]} Nf6 {[%clk 01:30:53]} {[%emt
00:00:07]} 2. c4 {[%clk 01:31:13]} {[%emt 00:00:14]} g6 {[%clk 01:31:07]}
{[%emt 00:00:16]} 3. Nc3 {[%clk 01:31:13]} {[%emt 00:00:30]} Bg7 {[%clk
01:31:29]} {[%emt 00:00:08]} 4. Nf3 {[%clk 01:31:09]} {[%emt 00:00:34]} O-O
{[%clk 01:31:32]} {[%emt 00:00:27]} 5. Bg5 {[%clk 01:31:20]} {[%emt 00:00:19]}
h6 {[%clk 01:29:21]} {[%emt 00:02:41]} 6. Bh4 {[%clk 01:30:19]} {[%emt
00:01:32]} d6 {[%clk 01:23:33]} {[%emt 00:06:17]} 7. e3 {[%clk 01:29:42]}
{[%emt 00:01:07]} c5 {[%clk 01:21:43]} {[%emt 00:02:20]} 8. d5 {[%clk
01:28:51]} {[%emt 00:01:21]} Qa5 {[%clk 01:09:00]} {[%emt 00:13:14]} 9. Nd2
{[%clk 01:20:27]} {[%emt 00:08:53]} e6 {[%clk 00:58:44]} {[%emt 00:10:46]} 10.
Bg3 {[%clk 01:11:51]} {[%emt 00:09:06]} e5 {[%clk 00:50:48]} {[%emt 00:08:27]}
11. Be2 {[%clk 01:11:54]} {[%emt 00:00:27]} a6 {[%clk 00:48:36]} {[%emt
00:02:43]} 12. O-O {[%clk 01:09:49]} {[%emt 00:02:34]} Re8 {[%clk 00:40:30]}
{[%emt 00:08:36]} 13. a3 {[%clk 01:06:40]} {[%emt 00:03:39]} Nbd7 {[%clk
00:36:24]} {[%emt 00:04:36]} 14. Qc2 {[%clk 01:02:44]} {[%emt 00:04:26]} Nf8
{[%clk 00:28:08]} {[%emt 00:08:46]} 15. Rfb1 {[%clk 00:52:30]} {[%emt
00:10:43]} Qc7 {[%clk 00:24:56]} {[%emt 00:03:43]} 16. b4 {[%emt 00:03:28]} b6
{[%clk 00:24:58]} {[%emt 00:00:26]} 17. Rb2 {[%clk 00:48:01]} {[%emt 00:02:04]}
Bf5 {[%clk 00:21:02]} {[%emt 00:04:25]} 18. e4 {[%clk 00:47:20]} {[%emt
00:01:12]} Bd7 {[%clk 00:21:30]} {[%emt 00:00:02]} 19. Rab1 {[%clk 00:46:22]}
{[%emt 00:01:28]} Rab8 {[%clk 00:21:15]} {[%emt 00:00:45]} 20. Qb3 {[%clk
00:45:57]} {[%emt 00:00:55]} N6h7 {[%clk 00:18:52]} {[%emt 00:02:53]} 21. bxc5
{[%clk 00:41:59]} {[%emt 00:04:29]} dxc5 {[%clk 00:13:34]} {[%emt 00:05:48]} 22.
Qc2 {[%clk 00:40:08]} {[%emt 00:02:21]} f5 {[%clk 00:12:31]} {[%emt 00:01:33]}
23. f3 {[%clk 00:40:26]} {[%emt 00:00:12]} f4 {[%clk 00:11:33]} {[%emt
00:01:28]} 24. Bf2 {[%clk 00:40:43]} {[%emt 00:00:12]} g5 {[%clk 00:11:12]}
{[%emt 00:00:51]} 25. Na4 {[%clk 00:39:19]} {[%emt 00:01:54]} Bxa4 {[%clk
00:09:38]} {[%emt 00:02:05]} 26. Qxa4 {[%clk 00:39:42]} {[%emt 00:00:06]} Nd7
{[%clk 00:08:19]} {[%emt 00:01:49]} 27. Qxa6 {[%clk 00:33:13]} {[%emt
00:06:59]} Ra8 {[%clk 00:08:29]} {[%emt 00:00:20]} 28. Qb5 {[%clk 00:33:36]}
{[%emt 00:00:06]} Rxa3 {[%clk 00:07:48]} {[%emt 00:01:12]} 29. Qc6 {[%clk
00:30:37]} {[%emt 00:03:29]} Rc8 {[%clk 00:06:31]} {[%emt 00:01:47]} 30. Qxc7
{[%clk 00:29:13]} {[%emt 00:01:54]} Rxc7 {[%clk 00:06:58]} {[%emt 00:00:04]} 31.
Rd1 {[%clk 00:28:09]} {[%emt 00:01:32]} Nhf6 {[%clk 00:04:08]} {[%emt
00:03:20]} 32. Nb1 {[%clk 00:28:03]} {[%emt 00:00:36]} Ra1 {[%clk 00:03:54]}
{[%emt 00:00:44]} 33. Nc3 {[%clk 00:28:12]} {[%emt 00:00:20]} Rca7 {[%clk
00:03:55]} {[%emt 00:00:31]} 34. Rbb1 {[%clk 00:27:19]} {[%emt 00:01:23]} Rxb1
{[%clk 00:03:40]} {[%emt 00:00:46]} 35. Rxb1 {[%clk 00:27:39]} {[%emt
00:00:09]} Bf8 {[%clk 00:03:19]} {[%emt 00:00:51]} 36. Bd1 {[%clk 00:25:35]}
{[%emt 00:02:34]} Kf7 {[%clk 00:01:26]} {[%emt 00:02:23]} 37. Ba4 {[%clk
00:25:28]} {[%emt 00:00:37]} Ke7 {[%clk 00:01:00]} {[%emt 00:00:55]} 38. Bc6
{[%clk 00:19:02]} {[%emt 00:06:56]} Kf7 {[%clk 00:00:38]} {[%emt 00:00:53]} 39.
Nb5 {[%clk 00:17:11]} {[%emt 00:02:21]} Ra2 {[%clk 00:00:57]} {[%emt 00:00:11]}
40. Be1 {[%clk 00:17:18]} {[%emt 00:00:23]} Be7 {[%clk 00:00:40]} {[%emt
00:00:47]} 41. Kf1 {[%clk 00:15:02]} {[%emt 00:02:45]} Bd8 {[%clk 00:27:25]}
{[%emt 00:03:45]} 42. Nc3 {[%clk 00:40:36]} {[%emt 00:04:57]} Ra7 {[%clk
00:23:41]} {[%emt 00:04:15]} 43. Ke2 {[%clk 00:38:48]} {[%emt 00:02:18]} Ke7
{[%clk 00:22:40]} {[%emt 00:01:30]} 44. Kd3 {[%clk 00:36:49]} {[%emt 00:02:29]}
Ne8 {[%clk 00:17:48]} {[%emt 00:05:22]} 45. Kc2 {[%clk 00:32:28]} {[%emt
00:04:51]} Nb8 {[%clk 00:16:02]} {[%emt 00:02:15]} 46. Kb3 {[%clk 00:31:18]}
{[%emt 00:01:40]} Nd6 {[%clk 00:15:05]} {[%emt 00:01:27]} 47. Bb5 {[%clk
00:31:12]} {[%emt 00:00:36]} Ra8 {[%clk 00:13:39]} {[%emt 00:01:57]} 48. Bd2
{[%clk 00:30:01]} {[%emt 00:01:40]} Ra7 {[%clk 00:12:29]} {[%emt 00:01:41]} 49.
h4 {[%clk 00:29:06]} {[%emt 00:01:24]} gxh4 {[%clk 00:04:25]} {[%emt 00:08:34]}
50. Rh1 {[%clk 00:29:24]} {[%emt 00:00:11]} Kf7 {[%clk 00:03:10]} {[%emt
00:01:45]} 51. Be1 {[%clk 00:29:31]} {[%emt 00:00:23]} Kg6 {[%clk 00:02:44]}
{[%emt 00:00:57]} 52. Bxh4 {[%clk 00:29:31]} {[%emt 00:00:30]} Bg5 {[%clk
00:01:54]} {[%emt 00:01:21]} 53. Bf2 {[%clk 00:29:03]} {[%emt 00:00:57]} Kf6
{[%clk 00:01:10]} {[%emt 00:01:14]} 54. Bc6 {[%clk 00:28:23]} {[%emt 00:01:10]}
Ra5 {[%clk 00:00:39]} {[%emt 00:01:02]} 55. Rc1 {[%clk 00:27:50]} {[%emt
00:01:02]} Ra7 {[%clk 00:00:41]} {[%emt 00:00:29]} 56. Na4 {[%clk 00:26:30]}
{[%emt 00:01:50]} Ra6 {[%clk 00:00:34]} {[%emt 00:00:37]} 57. Be1 {[%clk
00:26:26]} {[%emt 00:00:34]} Ke7 {[%clk 00:00:37]} {[%emt 00:00:27]} 58. Bb5
{[%clk 00:26:18]} {[%emt 00:00:38]} Ra7 {[%clk 00:00:31]} {[%emt 00:00:37]} 59.
Nxb6 {[%clk 00:26:14]} {[%emt 00:00:33]} Kd8 {[%clk 00:00:32]} {[%emt
00:00:30]} 60. Bf2 {[%clk 00:25:17]} {[%emt 00:01:26]} Rc7 {[%clk 00:00:31]}
{[%emt 00:00:32]} 61. Na4 {[%clk 00:25:13]} {[%emt 00:00:33]} Nb7 {[%clk
00:01:00]} {[%emt 00:00:01]} 62. Ra1 {[%clk 00:23:15]} {[%emt 00:02:28]} Ke7
{[%clk 00:00:35]} {[%emt 00:00:55]} 63. Nb2 {[%clk 00:22:16]} {[%emt 00:01:28]}
Nd6 {[%clk 00:00:31]} {[%emt 00:00:34]} 64. Ra8 {[%clk 00:21:57]} {[%emt
00:00:49]} Nd7 {[%clk 00:01:00]} {[%emt 00:00:02]} 65. Bxd7 {[%clk 00:21:44]}
{[%emt 00:00:43]} Kxd7 {[%clk 00:01:16]} {[%emt 00:00:14]} 66. Nd3 {[%clk
00:21:53]} {[%emt 00:00:20]} Rb7+ {[%clk 00:01:01]} {[%emt 00:00:46]} 67. Kc2
{[%clk 00:21:54]} {[%emt 00:00:29]} Nxc4 {[%clk 00:00:31]} {[%emt 00:01:00]} 68.
Nxc5+ {[%clk 00:22:09]} {[%emt 00:00:15]} Kc7 {[%clk 00:00:59]} {[%emt
00:00:02]} 69. Nxb7 {[%clk 00:22:00]} {[%emt 00:00:38]} Kxb7 {[%clk 00:01:28]}
{[%emt 00:00:01]} 70. Re8 {[%clk 00:21:47]} {[%emt 00:00:43]} Ne3+ {[%clk
00:00:33]} {[%emt 00:01:26]} 71. Bxe3 {[%clk 00:22:03]} {[%emt 00:00:14]} fxe3
{[%clk 00:00:59]} {[%emt 00:00:03]} 72. Kd3 {[%clk 00:22:21]} {[%emt 00:00:11]}
Bf4 {[%clk 00:00:47]} {[%emt 00:00:42]} 73. Rg8 {[%clk 00:22:43]} {[%emt
00:00:07]} Kc7 {[%clk 00:00:48]} {[%emt 00:00:31]} 74. g3 {[%clk 00:23:06]}
{[%emt 00:00:07]} Bg5 {[%clk 00:01:10]} {[%emt 00:00:08]} 75. Rxg5 {[%clk
00:23:16]} {[%emt 00:00:20]} e2 {[%emt 00:01:25]} 1-0

[Event "21è Open International d'Echecs de Menton"]
[Site "Menton, France"]
[Date "2024.10.28"]
[Round "2.1"]
[White "Alexis, MUNIER 2099"]
[Black "Jean-Marc, DEGRAEVE 2479"]
[Result "0-1"]
[TimeControl "90'+30''/40m + 30'+30''"]
[BlackTitle "GM"]
[WhiteFideId "45162450"]
[BlackFideId "600270"]
[WhiteElo "2099"]
[BlackElo "2479"]

1. e4 {[%clk 01:27:48]} {[%emt 00:03:02]} e5 {[%clk 01:30:38]} {[%emt
00:00:32]} 2. Nf3 {[%clk 01:27:48]} {[%emt 00:00:29]} Nc6 {[%clk 01:31:02]}
{[%emt 00:00:06]} 3. Bc4 {[%clk 01:27:39]} {[%emt 00:00:39]} Nf6 {[%clk
01:31:11]} {[%emt 00:00:22]} 4. d3 {[%clk 01:27:55]} {[%emt 00:00:13]} Bc5
{[%clk 01:31:11]} {[%emt 00:00:30]} 5. c3 {[%clk 01:27:59]} {[%emt 00:00:26]}
d6 {[%clk 01:31:16]} {[%emt 00:00:25]} 6. a4 {[%clk 01:28:10]} {[%emt
00:00:19]} a5 {[%clk 01:31:19]} {[%emt 00:00:28]} 7. O-O {[%clk 01:28:12]}
{[%emt 00:00:28]} O-O {[%clk 01:31:30]} {[%emt 00:00:19]} 8. Nbd2 {[%clk
01:27:37]} {[%emt 00:01:05]} Ba7 {[%clk 01:30:01]} {[%emt 00:01:59]} 9. Re1
{[%clk 01:27:09]} {[%emt 00:00:57]} Ng4 {[%clk 01:28:29]} {[%emt 00:02:03]} 10.
Re2 {[%clk 01:26:48]} {[%emt 00:00:51]} Kh8 {[%clk 01:28:07]} {[%emt 00:00:51]}
11. h3 {[%clk 01:22:16]} {[%emt 00:05:02]} f5 {[%clk 01:24:49]} {[%emt
00:03:48]} 12. d4 {[%clk 01:06:22]} {[%emt 00:16:24]} Nf6 {[%clk 01:22:38]}
{[%emt 00:02:41]} 13. dxe5 {[%clk 00:57:18]} {[%emt 00:09:34]} Nxe5 {[%clk
01:21:30]} {[%emt 00:01:38]} 14. Nxe5 {[%clk 00:56:33]} {[%emt 00:01:16]} dxe5
{[%clk 01:21:59]} {[%emt 00:00:02]} 15. Qe1 {[%clk 00:50:20]} {[%emt 00:06:42]}
f4 {[%clk 01:18:27]} {[%emt 00:04:03]} 16. Nf3 {[%clk 00:50:02]} {[%emt
00:00:47]} Qe8 {[%clk 01:15:29]} {[%emt 00:03:28]} 17. b3 {[%clk 00:47:44]}
{[%emt 00:02:48]} Qh5 {[%clk 01:15:20]} {[%emt 00:00:39]} 18. Kh2 {[%clk
00:36:55]} {[%emt 00:11:19]} Bxh3 {[%clk 01:09:38]} {[%emt 00:06:13]} 19. gxh3
{[%clk 00:36:54]} {[%emt 00:00:30]} Qxf3 {[%clk 01:10:01]} {[%emt 00:00:06]} 20.
Qf1 {[%clk 00:31:14]} {[%emt 00:06:09]} Ng4+ {[%clk 00:54:01]} {[%emt
00:16:31]} 21. hxg4 {[%clk 00:31:11]} {[%emt 00:00:32]} Rf6 {[%clk 00:54:27]}
{[%emt 00:00:03]} 22. Qg2 {[%clk 00:31:14]} {[%emt 00:00:27]} Qxg2+ {[%clk
00:54:54]} {[%emt 00:00:05]} 0-1